[Event "6th Uppsala Young Champions 2019"]
[Site "Uppsala"]
[Date "2019.10.26"]
[Round "3.4"]
[White "Apol, Luitjen Akselsson"]
[Black "Narva, David"]
[Result "1-0"]
[ECO "B54"]
[WhiteElo "2129"]
[BlackElo "1979"]
[Annotator "NA"]
[PlyCount "75"]
[EventDate "2019.10.25"]
[EventType "swiss"]
[EventCountry "SWE"]
[SourceTitle "playchess.com"]
[Source "ChessBase"]
[SourceQuality "1"]
[TimeControl "5400+30"]

1. e4 {[%emt 0:00:00]} c5 {[%emt 0:00:00]} 2. Nf3 {[%emt 0:01:35]} d6 {[%emt 0:00:59]} 3. d4 {[%emt 0:00:16]} cxd4 {[%emt 0:00:06]} 4. Nxd4 {[%emt 0:00:10]} Nc6 {[%emt 0:00:24]} 5. c4 {[%emt 0:00:41]} Nf6 {[%emt 0:00:20]} 6. Nc3 {[%emt 0:00:09]} e6 {[%emt 0:01:35]} 7. Be3 {[%emt 0:00:42]} Be7 {[%emt 0:00:49]} 8. Be2 {[%emt 0:00:48]} O-O {[%emt 0:01:50]} 9. O-O {[%emt 0:00:20]} Nxd4 {[%emt 0:01:18]} 10. Qxd4 {[%emt 0:01:11]} b6 {[%emt 0:04:53]} 11. Rfd1 {[%emt 0:01:51]} Bb7 {[%emt 0:01:23]} 12. f3 {[%emt 0:01:04]} Re8 {[%emt 0:11:04]} 13. Qd2 {[%emt 0:02:55]} d5 {[%emt 0:10:09]} 14. cxd5 {[%emt 0:02:34]} exd5 {[%emt 0:00:05]} 15. Bb5 {[%emt 0:02:54]} dxe4 {[%emt 0:00:13]} 16. Bxe8 {[%emt 0:00:10]} Qxe8 {[%emt 0:00:26]} 17. Nxe4 {[%emt 0:01:19]} Bxe4 {[%emt 0:02:41]} 18. fxe4 {[%emt 0:00:10]} Ng4 {[%emt 0:00:19]} 19. Kh1 {[%emt 0:01:51]} Bh4 {[%emt 0:16:36]} 20. h3 {[%emt 0:05:16]} Nf6 {[%emt 0:00:28]} 21. e5 {[%emt 0:00:55]} Ne4 {[%emt 0:10:22]} 22. Qd5 {[%emt 0:04:00]} Ng3+ {[%emt 0:01:29]} 23. Kh2 {[%emt 0:00:57]} Ne2 {[%emt 0:09:03]} 24. e6 {[%emt 0:03:22]} fxe6 {[%emt 0:07:35]} 25. Qc4 {[%emt 0:01:50]} Qb8+ {[%emt 0:01:15]} 26. Kh1 {[%emt 0:00:06]} Ng3+ {[%emt 0:00:23]} 27. Kg1 {[%emt 0:00:06]} Qe5 {[%emt 0:01:22]} 28. Qxh4 {[%emt 0:02:39]} Qxe3+ {[%emt 0:00:04]} 29. Kh2 {[%emt 0:00:08]} Nf5 {[%emt 0:00:50]} 30. Rd8+ {[%emt 0:01:09]} Kf7 {[%emt 0:08:55]} 31. Qh5+ {[%emt 0:01:00]} Ke7 {[%emt 0:01:40]} 32. Qe8+ {[%emt 0:00:30]} Kf6 {[%emt 0:00:46]} 33. Rxa8 {[%emt 0:00:58]} Qf4+ {[%emt 0:04:28]} 34. Kg1 {[%emt 0:00:35]} Qd4+ {[%emt 0:01:46]} 35. Kh1 {[%emt 0:00:25]} Ng3+ {[%emt 0:01:13]} 36. Kh2 {[%emt 0:00:06]} Qe5 {[%emt 0:00:35]} 37. Qb8 {[%emt 0:01:25]} Nf1+ {[%emt 0:00:20]} 38. Kg1 {[%emt 0:00:06]} 1-0

[Event "6th Uppsala Young Champions 2019"]
[Site "Uppsala"]
[Date "2019.10.26"]
[Round "3.5"]
[White "Thorhallsson, Simon"]
[Black "Pantzar, Milton"]
[Result "1/2-1/2"]
[ECO "A84"]
[WhiteElo "2190"]
[BlackElo "2376"]
[Annotator "NA"]
[PlyCount "87"]
[EventDate "2019.10.25"]
[EventType "swiss"]
[EventCountry "SWE"]
[SourceTitle "playchess.com"]
[Source "ChessBase"]
[SourceQuality "1"]
[TimeControl "5400+30"]

1. d4 {[%emt 0:00:00]} d5 {[%emt 0:00:00]} 2. c4 {[%emt 0:00:00]} e6 {[%emt 0:00:00]} 3. Nf3 {[%emt 0:02:02]} c6 {[%emt 0:00:10]} 4. e3 {[%emt 0:01:31]} f5 {[%emt 0:00:27]} 5. Bd3 {[%emt 0:00:17]} Nf6 {[%emt 0:00:56]} 6. O-O {[%emt 0:00:10]} Bd6 {[%emt 0:00:49]} 7. b3 {[%emt 0:00:12]} Qe7 {[%emt 0:01:10]} 8. Bb2 {[%emt 0:00:08]} O-O {[%emt 0:02:12]} 9. Qc1 {[%emt 0:00:11]} b6 {[%emt 0:14:02]} 10. Ba3 {[%emt 0:03:32]} Ne4 {[%emt 0:02:20]} 11. Bxd6 {[%emt 0:00:25]} Qxd6 {[%emt 0:00:26]} 12. Qa3 {[%emt 0:01:03]} Qxa3 {[%emt 0:04:28]} 13. Nxa3 {[%emt 0:00:06]} Nd7 {[%emt 0:00:12]} 14. cxd5 {[%emt 0:02:37]} exd5 {[%emt 0:01:00]} 15. Rac1 {[%emt 0:05:35]} Bb7 {[%emt 0:00:29]} 16. Nb1 {[%emt 0:02:35]} a5 {[%emt 0:07:51]} 17. a4 {[%emt 0:02:19]} g6 {[%emt 0:05:40]} 18. Nc3 {[%emt 0:02:12]} Rfc8 {[%emt 0:02:32]} 19. Ne2 {[%emt 0:02:28]} Kg7 {[%emt 0:03:58]} 20. Rc2 {[%emt 0:03:00]} Kf6 {[%emt 0:02:09]} 21. Rfc1 {[%emt 0:02:54]} g5 {[%emt 0:02:49]} 22. Nd2 {[%emt 0:03:21]} h6 {[%emt 0:05:30]} 23. h3 {[%emt 0:08:48]} Nd6 {[%emt 0:06:11]} 24. g4 {[%emt 0:03:32]} fxg4 {[%emt 0:01:02]} 25. hxg4 {[%emt 0:00:09]} c5 {[%emt 0:00:38]} 26. Ng3 {[%emt 0:06:24]} cxd4 {[%emt 0:06:51]} 27. exd4 {[%emt 0:00:46]} Rxc2 {[%emt 0:04:31]} 28. Rxc2 {[%emt 0:00:28]} Rc8 {[%emt 0:00:06]} 29. Rxc8 {[%emt 0:02:49]} Bxc8 {[%emt 0:00:05]} 30. Nf5 {[%emt 0:07:54]} Nxf5 {[%emt 0:00:46]} 31. Bxf5 {[%emt 0:00:10]} Ke7 {[%emt 0:00:47]} 32. Kg2 {[%emt 0:10:04]} Ba6 {[%emt 0:00:53]} 33. Nb1 {[%emt 0:05:07]} Nb8 {[%emt 0:06:36]} 34. Kf3 {[%emt 0:03:21]} Nc6 {[%emt 0:00:30]} 35. Ke3 {[%emt 0:00:11]} Kd6 {[%emt 0:01:07]} 36. Nc3 {[%emt 0:01:25]} Nd8 {[%emt 0:01:12]} 37. f3 {[%emt 0:00:47]} Ne6 {[%emt 0:00:24]} 38. Bb1 {[%emt 0:01:43]} Nf4 {[%emt 0:00:10]} 39. Bf5 {[%emt 0:00:30]} Ke7 {[%emt 0:00:10]} 40. Bb1 {[%emt 0:01:56]} Kf6 {[%emt 0:00:07]} 41. Bh7 {[%emt 0:00:21]} Bb7 {[%emt 0:00:59]} 42. Bb1 {[%emt 0:02:00]} Bc6 {[%emt 0:00:07]} 43. Bh7 {[%emt 0:16:27]} Ke6 {[%emt 0:05:49]} 44. Bb1 {[%emt 0:00:00]} 1/2-1/2

[Event "6th Uppsala Young Champions 2019"]
[Site "Uppsala"]
[Date "2019.10.26"]
[Round "3.6"]
[White "Rasti, Arvin"]
[Black "Roshka, Yevgeniy"]
[Result "0-1"]
[ECO "B06"]
[WhiteElo "2179"]
[BlackElo "2369"]
[Annotator "NA"]
[PlyCount "76"]
[EventDate "2019.10.25"]
[EventType "swiss"]
[EventCountry "SWE"]
[SourceTitle "playchess.com"]
[Source "ChessBase"]
[SourceQuality "1"]
[TimeControl "5400+30"]

1. Nf3 {[%emt 0:00:00]} g6 {[%emt 0:05:04]} 2. e4 {[%emt 0:00:00]} Bg7 {[%emt 0:00:01]} 3. d4 {[%emt 0:00:00]} d6 {[%emt 0:00:01]} 4. Bc4 {[%emt 0:00:00]} Nf6 {[%emt 0:00:01]} 5. Qe2 {[%emt 0:00:06]} O-O {[%emt 0:02:00]} 6. h3 {[%emt 0:00:18]} e5 {[%emt 0:05:39]} 7. dxe5 {[%emt 0:00:44]} dxe5 {[%emt 0:00:01]} 8. O-O {[%emt 0:00:25]} Nbd7 {[%emt 0:01:44]} 9. Rd1 {[%emt 1:32:57]} Nh5 {[%emt 0:06:05]} 10. c3 {[%emt 0:00:00]} h6 {[%emt 0:00:54]} 11. Na3 {[%emt 0:00:00]} c6 {[%emt 0:01:19]} 12. Rd6 {[%emt 0:00:00]} Kh7 {[%emt 0:00:55]} 13. Be3 {[%emt 0:00:00]} Qe7 {[%emt 0:02:47]} 14. Rad1 {[%emt 0:00:00]} Ndf6 {[%emt 0:03:00]} 15. Qd3 {[%emt 0:00:00]} Ne8 {[%emt 0:01:50]} 16. Rd8 {[%emt 0:00:00]} f5 {[%emt 0:00:59]} 17. exf5 {[%emt 0:00:00]} gxf5 {[%emt 0:04:05]} 18. Qe2 {[%emt 0:00:00]} Nef6 {[%emt 0:07:05]} 19. R8d6 {[%emt 0:00:00]} e4 {[%emt 0:03:06]} 20. Bc5 {[%emt 0:00:00]} Nf4 {[%emt 0:00:09]} 21. Qe3 {[%emt 0:00:00]} Nxg2 {[%emt 0:00:07]} 22. Kxg2 {[%emt 0:00:00]} exf3+ {[%emt 0:01:34]} 23. Qxf3 {[%emt 0:00:00]} Qe5 {[%emt 0:00:49]} 24. Be3 {[%emt 0:00:00]} Ne4 {[%emt 0:01:18]} 25. Bf4 {[%emt 0:00:00]} Qe7 {[%emt 0:01:58]} 26. Qe3 {[%emt 0:00:00]} Qh4 {[%emt 0:03:32]} 27. R6d3 {[%emt 0:00:00]} a5 {[%emt 0:14:48]} 28. Bg3 {[%emt 0:00:00]} Qh5 {[%emt 0:03:59]} 29. Qf4 {[%emt 0:00:00]} b5 {[%emt 0:04:42]} 30. Bb3 {[%emt 0:00:00]} a4 {[%emt 0:01:01]} 31. Bc2 {[%emt 0:00:00]} Be6 {[%emt 0:00:23]} 32. f3 {[%emt 0:00:00]} Nxg3 {[%emt 0:03:12]} 33. Kxg3 {[%emt 0:00:00]} Rg8 {[%emt 0:06:32]} 34. Kh2 {[%emt 0:00:00]} Bf6 {[%emt 0:02:18]} 35. Rd6 {[%emt 0:00:00]} Qg6 {[%emt 0:00:26]} 36. R6d2 {[%emt 0:00:00]} Rad8 {[%emt 0:01:26]} 37. Kh1 {[%emt 0:01:26]} Rxd2 {[%emt 0:00:13]} 38. Qxd2 {[%emt 0:00:20]} Qg3 {[%emt 0:00:02]} 0-1

[Event "6th Uppsala Young Champions 2019"]
[Site "Uppsala"]
[Date "2019.10.26"]
[Round "3.7"]
[White "Vainerchuk, Barys"]
[Black "Storme, Isak"]
[Result "0-1"]
[ECO "C13"]
[WhiteElo "2136"]
[BlackElo "2244"]
[Annotator "NA"]
[PlyCount "80"]
[EventDate "2019.10.25"]
[EventType "swiss"]
[EventCountry "SWE"]
[SourceTitle "playchess.com"]
[Source "ChessBase"]
[SourceQuality "1"]
[TimeControl "5400+30"]

1. e4 {[%emt 0:00:00]} e6 {[%emt 0:00:12]} 2. d4 {[%emt 0:00:00]} d5 {[%emt 0:00:06]} 3. Nc3 {[%emt 0:00:18]} Nf6 {[%emt 0:00:06]} 4. Bg5 {[%emt 0:00:13]} dxe4 {[%emt 0:00:09]} 5. Nxe4 {[%emt 0:00:06]} Be7 {[%emt 0:00:10]} 6. Bxf6 {[%emt 0:02:09]} gxf6 {[%emt 0:00:06]} 7. Nf3 {[%emt 0:01:21]} f5 {[%emt 0:00:48]} 8. Ned2 {[%emt 0:02:27]} c5 {[%emt 0:05:01]} 9. Nb3 {[%emt 0:04:11]} cxd4 {[%emt 0:01:36]} 10. Qxd4 {[%emt 0:01:01]} Qxd4 {[%emt 0:00:11]} 11. Nfxd4 {[%emt 0:00:20]} a6 {[%emt 0:06:38]} 12. g3 {[%emt 0:04:06]} b6 {[%emt 0:00:33]} 13. Bg2 {[%emt 0:00:25]} Ra7 {[%emt 0:00:04]} 14. O-O {[%emt 0:12:10]} h5 {[%emt 0:01:33]} 15. a4 {[%emt 0:01:15]} Bd7 {[%emt 0:00:40]} 16. c4 {[%emt 1:07:58]} Rc7 {[%emt 0:03:51]} 17. Rfc1 {[%emt 0:00:00]} Bf6 {[%emt 0:09:39]} 18. a5 {[%emt 0:00:00]} bxa5 {[%emt 0:00:55]} 19. Rxa5 {[%emt 0:00:00]} O-O {[%emt 0:03:49]} 20. c5 {[%emt 0:00:00]} e5 {[%emt 0:03:23]} 21. Ne2 {[%emt 0:00:00]} Be6 {[%emt 0:02:39]} 22. Nd2 {[%emt 0:00:00]} Rd8 {[%emt 0:03:05]} 23. Nc4 {[%emt 0:00:00]} Bxc4 {[%emt 0:02:42]} 24. Rxc4 {[%emt 0:00:00]} Rd2 {[%emt 0:00:38]} 25. Nc3 {[%emt 0:00:00]} e4 {[%emt 0:04:40]} 26. c6 {[%emt 0:00:00]} Rxc6 {[%emt 0:08:10]} 27. Rxc6 {[%emt 0:00:00]} Nxc6 {[%emt 0:00:08]} 28. Rxf5 {[%emt 0:06:00]} Bd4 {[%emt 0:07:54]} 29. Nxe4 {[%emt 0:00:00]} Rd1+ {[%emt 0:00:57]} 30. Bf1 {[%emt 0:00:00]} Bxb2 {[%emt 0:00:47]} 31. Kg2 {[%emt 0:00:00]} a5 {[%emt 0:01:35]} 32. f4 {[%emt 0:00:00]} Rc1 {[%emt 0:05:22]} 33. Rg5+ {[%emt 0:00:00]} Kf8 {[%emt 0:00:13]} 34. Bb5 {[%emt 0:00:00]} Nd4 {[%emt 0:04:51]} 35. Rxh5 {[%emt 0:00:00]} Rc2+ {[%emt 0:00:17]} 36. Kh3 {[%emt 0:00:00]} f5 {[%emt 0:01:58]} 37. Nd6 {[%emt 0:00:39]} Rc5 {[%emt 0:05:18]} 38. Bd3 {[%emt 0:02:40]} a4 {[%emt 0:02:55]} 39. Nxf5 {[%emt 0:01:28]} Nc6 {[%emt 0:00:22]} 40. Rh8+ {[%emt 0:00:20]} Bxh8 {[%emt 0:00:08]} 0-1

[Event "6th Uppsala Young Champions 2019"]
[Site "Uppsala"]
[Date "2019.10.26"]
[Round "3.8"]
[White "Vitenberg, Noam Aviv"]
[Black "Nguyen, Gabriel"]
[Result "1-0"]
[ECO "E91"]
[WhiteElo "2223"]
[BlackElo "2071"]
[Annotator "NA RC"]
[PlyCount "139"]
[EventDate "2019.10.25"]
[EventType "swiss"]
[EventCountry "SWE"]
[SourceTitle "playchess.com"]
[Source "ChessBase"]
[SourceQuality "1"]
[TimeControl "5400+30"]

1. d4 {[%emt 0:05:06]} Nf6 {[%emt 0:00:00]} 2. c4 {[%emt 0:00:08]} g6 {[%emt 0:00:00]} 3. Nc3 {[%emt 0:00:10]} Bg7 {[%emt 0:00:00]} 4. e4 {[%emt 0:00:14]} d6 {[%emt 0:00:00]} 5. Nf3 {[%emt 0:00:07]} O-O {[%emt 0:00:00]} 6. Be2 {[%emt 0:00:23]} e5 {[%emt 0:00:00]} 7. Be3 {[%emt 0:00:10]} Bg4 {[%emt 0:13:55]} 8. d5 {[%emt 0:11:28]} a5 {[%emt 0:09:57]} 9. a3 {[%emt 0:07:09]} Na6 {[%emt 0:00:38]} 10. h3 {[%emt 0:02:31]} Bd7 {[%emt 0:02:52]} 11. Nd2 {[%emt 0:02:14]} Ne8 {[%emt 0:06:41]} 12. h4 {[%emt 0:03:13]} f5 {[%emt 0:00:44]} 13. f3 {[%emt 0:00:27]} f4 {[%emt 0:01:31]} 14. Bf2 {[%emt 0:00:25]} Nf6 {[%emt 0:00:42]} 15. Rb1 {[%emt 0:03:05]} Nh5 {[%emt 0:01:39]} 16. Nf1 {[%emt 0:00:40]} Nc5 {[%emt 0:08:32]} 17. b4 {[%emt 0:03:10]} axb4 {[%emt 0:00:26]} 18. axb4 {[%emt 0:00:17]} Na4 {[%emt 0:00:06]} 19. Nxa4 {[%emt 0:00:52]} Rxa4 {[%emt 0:02:08]} 20. c5 {[%emt 0:03:15]} Qa8 {[%emt 0:02:56]} 21. b5 {[%emt 0:03:13]} dxc5 {[%emt 0:01:12]} 22. Bxc5 {[%emt 0:02:47]} b6 {[%emt 0:04:06]} 23. Bb4 {[%emt 0:03:51]} Re8 {[%emt 0:04:50]} 24. Qc2 {[%emt 0:09:26]} Ra1 {[%emt 0:06:44]} 25. Kf2 {[%emt 0:05:51]} Rxb1 {[%emt 0:02:18]} 26. Qxb1 {[%emt 0:00:18]} Qa4 {[%emt 0:00:26]} 27. Bc3 {[%emt 0:10:28]} Bf8 {[%emt 0:01:20]} 28. Qa1 {[%emt 0:03:26]} Bc5+ {[%emt 0:06:47]} 29. Ke1 {[%emt 0:00:47]} Bxb5 {[%emt 0:02:44]} 30. Qxa4 {[%emt 0:05:47]} Bxa4 {[%emt 0:00:07]} 31. Bd1 {[%emt 0:00:28]} Bb5 {[%emt 0:01:39]} 32. Be2 {[%emt 0:01:23]} Ba4 {[%emt 0:02:58]} 33. Bd1 {[%emt 0:01:12]} Bd7 {[%emt 0:00:53]} 34. Bb3 {[%emt 0:01:06]} Kf8 {[%emt 0:00:28]} 35. Kd2 {[%emt 0:00:30]} b5 {[%emt 0:00:54]} 36. Kd3 {[%emt 0:00:55]} Bd6 {[%emt 0:02:01]} 37. Nh2 {[%emt 0:02:30]} Ra8 {[%emt 0:04:51]} 38. Rb1 {[%emt 0:01:23]} Nf6 {[%emt 0:00:20]} 39. Nf1 {[%emt 0:01:00]} Be8 {[%emt 0:01:47]} 40. g3 {[%emt 0:01:41]} Nd7 {[%emt 0:03:11]} 41. Bc2 {[%emt 0:00:38]} Rb8 {[%emt 0:02:09]} 42. gxf4 {[%emt 0:00:51]} exf4 {[%emt 0:00:08]} 43. Ke2 {[%emt 0:01:30]} h6 {[%emt 0:02:57]} 44. Nd2 {[%emt 0:00:26]} b4 {[%emt 0:00:29]} 45. Bd4 {[%emt 0:00:32]} Ne5 {[%emt 0:00:15]} 46. Kf2 {[%emt 0:00:57]} Ke7 {[%emt 0:00:38]} 47. Nb3 {[%emt 0:01:09]} Ra8 {[%emt 0:01:06]} 48. Nc1 {[%emt 0:02:03]} Ba4 {[%emt 0:01:10]} 49. Ra1 {[%emt 0:01:01]} Bxc2 {[%emt 0:00:04]} 50. Rxa8 {[%emt 0:00:14]} b3 {[%emt 0:00:16]} 51. Rb8 {[%emt 0:01:04]} Bd1 {[%emt 0:01:49]} 52. Bxe5 {[%emt 0:00:59]} Bxe5 {[%emt 0:00:02]} 53. Nxb3 {[%emt 0:00:14]} Bxb3 {[%emt 0:00:19]} 54. Rxb3 {[%emt 0:00:08]} Bf6 {[%emt 0:00:06]} 55. h5 {[%emt 0:00:20]} gxh5 {[%emt 0:00:02]} 56. Kg2 {[%emt 0:00:54]} Kd6 {[%emt 0:00:08]} 57. Ra3 {[%emt 0:00:12]} Bd4 {[%emt 0:00:55]} 58. Kh3 {[%emt 0:00:15]} Ke5 {[%emt 0:00:28]} 59. Kh4 {[%emt 0:00:33]} Bc5 {[%emt 0:00:11]} 60. Rb3 {[%emt 0:00:31]} Kd4 {[%emt 0:02:01]} 61. Kxh5 {[%emt 0:00:33]} Bf8 {[%emt 0:00:10]} 62. Rb8 {[%emt 0:00:50]} Bd6 {[%emt 0:00:53]} 63. Kxh6 {[%emt 0:01:05]} c5 {[%emt 0:00:47]} 64. Rb6 {[%emt 0:00:49]} Ke5 {[%emt 0:00:05]} 65. Rc6 {[%emt 0:00:31]} Bf8+ {[%emt 0:02:22]} 66. Kg5 {[%emt 0:00:29]} Kd4 {[%emt 0:00:29]} 67. Kxf4 {[%emt 0:00:22]} c4 {[%emt 0:00:08]} 68. d6 {[%emt 0:00:07]} c3 {[%emt 0:00:05]} 69. d7 {[%emt 0:00:08]} Be7 {[%emt 0:00:04]} 70. Rc8 {[%emt 0:02:29] Kxe4 Kxe4} 1-0

[Event "6th Uppsala Young Champions 2019"]
[Site "Uppsala"]
[Date "2019.10.26"]
[Round "3.9"]
[White "Kristensen, Bjarke Hautop"]
[Black "Carlsson, Ludvig"]
[Result "1/2-1/2"]
[ECO "A42"]
[WhiteElo "2223"]
[BlackElo "2066"]
[Annotator "NA"]
[PlyCount "63"]
[EventDate "2019.10.25"]
[EventType "swiss"]
[EventCountry "SWE"]
[SourceTitle "playchess.com"]
[Source "ChessBase"]
[SourceQuality "1"]
[TimeControl "5400+30"]

1. Nf3 {[%emt 1:30:30]} g6 {[%emt 1:30:30]} 2. c4 {[%emt 0:00:30]} Bg7 {[%emt 0:00:30]} 3. Nc3 {[%emt 0:00:30]} d6 {[%emt 0:00:30]} 4. g3 {[%emt 0:00:30]} e5 {[%emt 0:00:30]} 5. Bg2 {[%emt 0:00:30]} Ne7 {[%emt 0:00:30]} 6. d4 {[%emt 0:00:30]} Nd7 {[%emt 0:00:30]} 7. O-O {[%emt 0:00:30]} O-O {[%emt 0:00:30]} 8. e4 {[%emt 0:00:30]} exd4 {[%emt 0:00:30]} 9. Nxd4 {[%emt 0:00:30]} Nc6 {[%emt 0:00:30]} 10. Nxc6 {[%emt 0:00:30]} bxc6 {[%emt 0:00:30]} 11. f4 {[%emt 0:00:30]} Ba6 {[%emt 0:00:30]} 12. Qd3 {[%emt 0:00:30]} Nb6 {[%emt 0:00:30]} 13. b3 {[%emt 0:00:30]} d5 {[%emt 0:00:30]} 14. exd5 {[%emt 0:00:30]} cxd5 {[%emt 0:00:30]} 15. Rd1 {[%emt 0:00:30]} dxc4 {[%emt 0:00:30]} 16. Qf3 {[%emt 0:00:30]} Qe7 {[%emt 0:00:30]} 17. Bb2 {[%emt 0:00:30]} Rab8 {[%emt 0:00:30]} 18. Qf2 {[%emt 0:00:30]} Bb7 {[%emt 0:00:30]} 19. Bxb7 {[%emt 0:00:30]} Rxb7 {[%emt 0:00:30]} 20. Rac1 {[%emt 0:00:30]} cxb3 {[%emt 0:00:30]} 21. axb3 {[%emt 0:00:30]} Qe6 {[%emt 0:00:30]} 22. Nb5 {[%emt 0:00:30]} Bxb2 {[%emt 0:00:30]} 23. Qxb2 {[%emt 0:00:30]} Qe3+ {[%emt 0:00:30]} 24. Kh1 {[%emt 0:00:30]} a6 {[%emt 0:00:30]} 25. Qg2 {[%emt 0:00:30]} Rbb8 {[%emt 0:00:30]} 26. Rc3 {[%emt 0:00:30]} Rbd8 {[%emt 0:00:30]} 27. Rxd8 {[%emt 0:00:30]} Qe1+ {[%emt 0:00:30]} 28. Qg1 {[%emt 0:00:30]} Qe4+ {[%emt 0:00:30]} 29. Qg2 {[%emt 0:00:30]} Qxg2+ {[%emt 0:00:30]} 30. Kxg2 {[%emt 0:00:30]} Rxd8 {[%emt 0:00:30]} 31. Nxc7 {[%emt 0:00:30]} Nd5 {[%emt 0:00:30]} 32. Nxd5 {[%emt 0:00:30]} 1/2-1/2

[Event "6th Uppsala Young Champions 2019"]
[Site "Uppsala"]
[Date "2019.10.26"]
[Round "3.10"]
[White "Crevatin, Leo"]
[Black "Ostlund, Joar"]
[Result "1-0"]
[ECO "D66"]
[WhiteElo "2221"]
[BlackElo "1955"]
[Annotator "NA"]
[PlyCount "77"]
[EventDate "2019.10.25"]
[EventType "swiss"]
[EventCountry "SWE"]
[SourceTitle "playchess.com"]
[Source "ChessBase"]
[SourceQuality "1"]
[TimeControl "5400+30"]

1. d4 {[%emt 0:00:00]} d5 {[%emt 0:00:00]} 2. c4 {[%emt 0:00:00]} e6 {[%emt 0:00:00]} 3. Nf3 {[%emt 0:00:19]} Nf6 {[%emt 0:00:16]} 4. Bg5 {[%emt 0:00:09]} Be7 {[%emt 0:02:10]} 5. e3 {[%emt 0:00:39]} Nbd7 {[%emt 0:02:23]} 6. Nc3 {[%emt 0:01:44]} O-O {[%emt 0:01:38]} 7. Rc1 {[%emt 0:01:42]} c6 {[%emt 0:01:43]} 8. Bd3 {[%emt 0:06:56]} dxc4 {[%emt 0:10:44]} 9. Bxc4 {[%emt 0:00:36]} b5 {[%emt 0:00:25]} 10. Bd3 {[%emt 0:03:48]} a6 {[%emt 0:07:05]} 11. Ne5 {[%emt 0:07:12]} c5 {[%emt 0:16:56]} 12. Nc6 {[%emt 0:09:32]} Qe8 {[%emt 0:00:05]} 13. Qf3 {[%emt 0:02:36]} Nb6 {[%emt 0:06:31]} 14. Nxe7+ {[%emt 0:06:25]} Qxe7 {[%emt 0:00:10]} 15. dxc5 {[%emt 0:02:29]} Nbd5 {[%emt 0:03:22]} 16. Nxd5 {[%emt 0:02:51]} exd5 {[%emt 0:00:33]} 17. Bxf6 {[%emt 0:00:43]} Qxf6 {[%emt 0:01:13]} 18. Qxf6 {[%emt 0:00:05]} gxf6 {[%emt 0:00:07]} 19. O-O {[%emt 0:00:35]} Be6 {[%emt 0:07:13]} 20. Rfd1 {[%emt 0:01:40]} Rac8 {[%emt 0:03:51]} 21. b4 {[%emt 0:02:07]} Bd7 {[%emt 0:03:16]} 22. Be2 {[%emt 0:06:19]} Bc6 {[%emt 0:00:17]} 23. Bf3 {[%emt 0:00:22]} Rcd8 {[%emt 0:01:04]} 24. Rd4 {[%emt 0:00:41]} Rfe8 {[%emt 0:08:51]} 25. Rcd1 {[%emt 0:02:40]} Rd7 {[%emt 0:02:37]} 26. Bxd5 {[%emt 0:00:35]} Bxd5 {[%emt 0:00:19]} 27. Rxd5 {[%emt 0:00:01]} Rc7 {[%emt 0:04:14]} 28. Rd8 {[%emt 0:01:32]} Rxd8 {[%emt 0:01:58]} 29. Rxd8+ {[%emt 0:00:04]} Kg7 {[%emt 0:00:10]} 30. g3 {[%emt 0:00:15]} Kg6 {[%emt 0:01:17]} 31. Rd6 {[%emt 0:01:05]} Ra7 {[%emt 0:00:08]} 32. Rb6 {[%emt 0:00:30]} Kf5 {[%emt 0:00:58]} 33. c6 {[%emt 0:00:58]} Ra8 {[%emt 0:00:52]} 34. Kg2 {[%emt 0:01:21]} Kg6 {[%emt 0:01:36]} 35. Kf3 {[%emt 0:01:07]} Kf5 {[%emt 0:00:42]} 36. c7 {[%emt 0:00:29]} Rc8 {[%emt 0:00:11]} 37. Rxa6 {[%emt 0:00:20]} Rxc7 {[%emt 0:00:07]} 38. Rb6 {[%emt 0:00:04]} Ra7 {[%emt 0:02:54]} 39. Rxb5+ {[%emt 0:00:34]} 1-0

[Event "6th Uppsala Young Champions 2019"]
[Site "Uppsala"]
[Date "2019.10.26"]
[Round "3.11"]
[White "Sorensen, Hampus"]
[Black "Ostensson, Julia"]
[Result "1-0"]
[ECO "E09"]
[WhiteElo "2330"]
[BlackElo "1483"]
[Annotator "NA"]
[PlyCount "101"]
[EventDate "2019.10.25"]
[EventType "swiss"]
[EventCountry "SWE"]
[SourceTitle "playchess.com"]
[Source "ChessBase"]
[SourceQuality "1"]
[TimeControl "5400+30"]

1. d4 {[%emt 1:30:30]} d5 {[%emt 1:30:30]} 2. c4 {[%emt 0:00:30]} e6 {[%emt 0:00:30]} 3. Nf3 {[%emt 0:00:30]} Nf6 {[%emt 0:00:30]} 4. g3 {[%emt 0:00:30]} Be7 {[%emt 0:00:30]} 5. Bg2 {[%emt 0:00:30]} O-O {[%emt 0:00:30]} 6. O-O {[%emt 0:00:30]} c6 {[%emt 0:00:30]} 7. Qc2 {[%emt 0:00:30]} Nbd7 {[%emt 0:00:30]} 8. Nbd2 {[%emt 0:00:30]} b6 {[%emt 0:00:30]} 9. e4 {[%emt 0:00:30]} dxe4 {[%emt 0:00:30]} 10. Nxe4 {[%emt 0:00:30]} Bb7 {[%emt 0:00:30]} 11. Nc3 {[%emt 0:00:30]} Re8 {[%emt 0:00:30]} 12. Rd1 {[%emt 0:00:30]} Qc8 {[%emt 0:00:30]} 13. b3 {[%emt 0:00:30]} b5 {[%emt 0:00:30]} 14. c5 {[%emt 0:00:30]} Nd5 {[%emt 0:00:30]} 15. Ne4 {[%emt 0:00:30]} N7f6 {[%emt 0:00:30]} 16. Ne5 {[%emt 0:00:30]} Nxe4 {[%emt 0:00:30]} 17. Bxe4 {[%emt 0:00:30]} f5 {[%emt 0:00:30]} 18. Bg2 {[%emt 0:00:30]} Bf6 {[%emt 0:00:30]} 19. Re1 {[%emt 0:00:30]} Ne7 {[%emt 0:00:30]} 20. Nf3 {[%emt 0:00:30]} Nd5 {[%emt 0:00:30]} 21. Bg5 {[%emt 0:00:30]} Qd7 {[%emt 0:00:30]} 22. h4 {[%emt 0:00:30]} h6 {[%emt 0:00:30]} 23. Bxf6 {[%emt 0:00:30]} gxf6 {[%emt 0:00:30]} 24. Nh2 {[%emt 0:00:30]} Rad8 {[%emt 0:00:30]} 25. Rad1 {[%emt 0:00:30]} a5 {[%emt 0:00:30]} 26. Qd2 {[%emt 0:00:30]} Qg7 {[%emt 0:00:30]} 27. Qxa5 {[%emt 0:00:30]} Ra8 {[%emt 0:00:30]} 28. Qd2 {[%emt 0:00:30]} Rad8 {[%emt 0:00:30]} 29. Nf1 {[%emt 0:00:30]} Rd7 {[%emt 0:00:30]} 30. a4 {[%emt 0:00:30]} bxa4 {[%emt 0:00:30]} 31. bxa4 {[%emt 0:00:30]} Kh7 {[%emt 0:00:30]} 32. Bxd5 {[%emt 0:00:30]} Rxd5 {[%emt 0:00:30]} 33. Ne3 {[%emt 0:00:30]} Rdd8 {[%emt 0:00:30]} 34. Nc4 {[%emt 0:00:30]} Re7 {[%emt 0:00:30]} 35. Nd6 {[%emt 0:00:30]} Bc8 {[%emt 0:00:30]} 36. Rb1 {[%emt 0:00:30]} Bd7 {[%emt 0:00:30]} 37. Rb7 {[%emt 0:00:30]} Rg8 {[%emt 0:00:30]} 38. a5 {[%emt 0:00:30]} Bc8 {[%emt 0:00:30]} 39. Rxe7 {[%emt 0:00:30]} Qxe7 {[%emt 0:00:30]} 40. Nxf5 {[%emt 0:00:30]} Qf8 {[%emt 0:00:30]} 41. Nd6 {[%emt 0:00:30]} f5 {[%emt 0:00:30]} 42. Qf4 {[%emt 0:00:30]} Rg4 {[%emt 0:00:30]} 43. Qf3 {[%emt 0:00:30]} Bd7 {[%emt 0:00:30]} 44. Rb1 {[%emt 0:00:30]} Rg7 {[%emt 0:00:30]} 45. Kh2 {[%emt 0:00:30]} Qa8 {[%emt 0:00:30]} 46. Nc4 {[%emt 0:00:30]} Bc8 {[%emt 0:00:30]} 47. Rb6 {[%emt 0:00:30]} Rc7 {[%emt 0:00:30]} 48. Qf4 {[%emt 0:00:30]} Rd7 {[%emt 0:00:30]} 49. Rb8 {[%emt 0:00:30]} Qa6 {[%emt 0:00:30]} 50. Nb6 {[%emt 0:00:30]} Bb7 {[%emt 0:00:30]} 51. Nxd7 {[%emt 0:00:30]} 1-0